{"text_format":"1","workbook":"xlsx","n_sheets":2,"sheets":["ورقة2","ورقة1"],"not_rendered":{"charts":0,"images":1,"macros":1,"external_links":1,"defined_names":3,"comments":0,"pivot_tables":0},"unopened":[],"bounds":{"document_bytes":16777216,"sheet_cells":100000,"rows_first":2000,"rows_last":500,"rows_between":2000,"halvings":0,"cell_chars":16384,"cell_head_chars":4096},"cells_cut":0,"cells_raw":0,"read":"whole","date_system":"1900"}

{"sheet":"ورقة2","index":0,"n_rows":18,"n_cols":7,"rows_kept":18,"cut":false,"hidden":false,"merged":[]}
["كود طباعة بدون الصفوف الفارغة"]
[]
["https://www.officena.net/ib/topic/115347-%D9%83%D9%88%D8%AF-%D8%B7%D8%A8%D8%A7%D8%B9%D8%A9-%D8%A8%D8%AF%D9%88%D9%86-%D8%A7%D9%84%D8%B5%D9%81%D9%88%D9%81-%D8%A7%D9%84%D9%81%D8%A7%D8%B1%D8%BA%D8%A9/#google_vignette"]
[]
["السلام عليكم ورحمة الله وبركاته ..هل متاح كود لطباعة الجدول المحدد بدون الصفوف الفارغة "]
[]
["ملحوظة الصفحة بيكون فيها جداول كتير فمطلوب الكود يتم تطبيقه على الجدول المحدد عن طريق الماوس"]
["سؤال تانى هل متاح يتم الطباعة 3 نسخ ويتم كتابة على النسخة الأولى خاص بالشركة والنسخة الثانية خاص بالعميل والنسخة الثالثة خاص بمورد النقل …"]
["مرفق الملف هو عبارة عن اذن صرف مخازن"]
[]
[]
["المطلوب عند طباعة اى اذن من الأذون الموجودة أو التى سيتم اضافاتها فيما بعد عند تحديد الإذن الذى سيتم طباعته "]
["يتم إخفاء الصفوف من الجدول الملون باللون الأخضر الفارغة من البيانات وليس المعادلات ..وجزاكم الله خيرا"]
[]
[]
[]
[null,null,null,null,null,null,"خاص بالعميل"]
[null,null,null,null,null,null,"خاص بمورد النقل"]

{"sheet":"ورقة1","index":1,"n_rows":1091,"n_cols":6,"rows_kept":1091,"cut":false,"hidden":false,"merged":[[1064,2,1064,3],[1064,4,1064,5],[1084,4,1084,5],[1086,2,1086,3],[1090,4,1090,5],[1051,4,1051,5],[1053,0,1053,1],[1053,4,1053,5],[1061,0,1061,1],[1062,2,1062,5],[1063,2,1063,5],[1023,2,1023,5],[1024,2,1024,5],[1025,2,1025,3],[1025,4,1025,5],[1045,4,1045,5],[1047,2,1047,3],[1006,4,1006,5],[1008,2,1008,3],[1012,4,1012,5],[1014,0,1014,1],[1014,4,1014,5],[1022,0,1022,1],[975,0,975,1],[975,4,975,5],[983,0,983,1],[984,2,984,5],[985,2,985,5],[986,2,986,3],[986,4,986,5],[946,2,946,5],[947,2,947,3],[947,4,947,5],[967,4,967,5],[969,2,969,3],[973,4,973,5],[930,2,930,3],[934,4,934,5],[936,0,936,1],[936,4,936,5],[944,0,944,1],[945,2,945,5],[905,0,905,1],[906,2,906,5],[907,2,907,5],[908,2,908,3],[908,4,908,5],[928,4,928,5],[869,2,869,3],[869,4,869,5],[889,4,889,5],[891,2,891,3],[895,4,895,5],[897,0,897,1],[897,4,897,5],[856,4,856,5],[858,0,858,1],[858,4,858,5],[866,0,866,1],[867,2,867,5],[868,2,868,5],[828,2,828,5],[829,2,829,5],[830,2,830,3],[830,4,830,5],[850,4,850,5],[852,2,852,3],[811,4,811,5],[813,2,813,3],[817,4,817,5],[819,0,819,1],[819,4,819,5],[827,0,827,1],[780,0,780,1],[780,4,780,5],[788,0,788,1],[789,2,789,5],[790,2,790,5],[791,2,791,3],[791,4,791,5],[751,2,751,5],[752,2,752,3],[752,4,752,5],[772,4,772,5],[774,2,774,3],[778,4,778,5],[735,2,735,3],[739,4,739,5],[741,0,741,1],[741,4,741,5],[749,0,749,1],[750,2,750,5],[710,0,710,1],[711,2,711,5],[712,2,712,5],[713,2,713,3],[713,4,713,5],[733,4,733,5],[674,2,674,3],[674,4,674,5],[694,4,694,5],[696,2,696,3],[700,4,700,5],[702,0,702,1],[702,4,702,5],[661,4,661,5],[663,0,663,1],[663,4,663,5],[671,0,671,1],[672,2,672,5],[673,2,673,5],[633,2,633,5],[634,2,634,5],[635,2,635,3],[635,4,635,5],[655,4,655,5],[657,2,657,3],[616,4,616,5],[618,2,618,3],[622,4,622,5],[624,0,624,1],[624,4,624,5],[632,0,632,1],[585,0,585,1],[585,4,585,5],[593,0,593,1],[594,2,594,5],[595,2,595,5],[596,2,596,3],[596,4,596,5],[556,2,556,5],[557,2,557,3],[557,4,557,5],[577,4,577,5],[579,2,579,3],[583,4,583,5],[540,2,540,3],[544,4,544,5],[546,0,546,1],[546,4,546,5],[554,0,554,1],[555,2,555,5],[515,0,515,1],[516,2,516,5],[517,2,517,5],[518,2,518,3],[518,4,518,5],[538,4,538,5],[479,2,479,3],[479,4,479,5],[499,4,499,5],[501,2,501,3],[505,4,505,5],[507,0,507,1],[507,4,507,5],[466,4,466,5],[468,0,468,1],[468,4,468,5],[476,0,476,1],[477,2,477,5],[478,2,478,5],[438,2,438,5],[439,2,439,5],[440,2,440,3],[440,4,440,5],[460,4,460,5],[462,2,462,3],[421,4,421,5],[423,2,423,3],[427,4,427,5],[429,0,429,1],[429,4,429,5],[437,0,437,1],[390,0,390,1],[390,4,390,5],[398,0,398,1],[399,2,399,5],[400,2,400,5],[401,2,401,3],[401,4,401,5],[361,2,361,5],[362,2,362,3],[362,4,362,5],[382,4,382,5],[384,2,384,3],[388,4,388,5],[345,2,345,3],[349,4,349,5],[351,0,351,1],[351,4,351,5],[359,0,359,1],[360,2,360,5],[320,0,320,1],[321,2,321,5],[322,2,322,5],[323,2,323,3],[323,4,323,5],[343,4,343,5],[284,2,284,3],[284,4,284,5],[304,4,304,5],[306,2,306,3],[310,4,310,5],[312,0,312,1],[312,4,312,5],[271,4,271,5],[273,0,273,1],[273,4,273,5],[281,0,281,1],[282,2,282,5],[283,2,283,5],[243,2,243,5],[244,2,244,5],[245,2,245,3],[245,4,245,5],[265,4,265,5],[267,2,267,3],[226,4,226,5],[228,2,228,3],[232,4,232,5],[234,0,234,1],[234,4,234,5],[242,0,242,1],[195,0,195,1],[195,4,195,5],[203,0,203,1],[204,2,204,5],[205,2,205,5],[206,2,206,3],[206,4,206,5],[166,2,166,5],[167,2,167,3],[167,4,167,5],[187,4,187,5],[189,2,189,3],[193,4,193,5],[150,2,150,3],[154,4,154,5],[156,0,156,1],[156,4,156,5],[164,0,164,1],[165,2,165,5],[125,0,125,1],[126,2,126,5],[127,2,127,5],[128,2,128,3],[128,4,128,5],[148,4,148,5],[89,2,89,3],[89,4,89,5],[109,4,109,5],[111,2,111,3],[115,4,115,5],[117,0,117,1],[117,4,117,5],[76,4,76,5],[78,0,78,1],[78,4,78,5],[86,0,86,1],[87,2,87,5],[88,2,88,5],[48,2,48,5],[49,2,49,5],[50,2,50,3],[50,4,50,5],[70,4,70,5],[72,2,72,3],[31,4,31,5],[33,2,33,3],[37,4,37,5],[39,0,39,1],[39,4,39,5],[47,0,47,1],[0,0,0,1],[0,4,0,5],[8,0,8,1],[9,2,9,5],[10,2,10,5],[11,2,11,3],[11,4,11,5]]}
[]
[]
[]
[null,null,null,null,"التاريخ"]
[null,null,null,null,"رقم البوليصة"]
[null,null,null,null,"رقم أمر التوريد"]
[null,null,null,null,"كود العميل"]
[1]
["بيانات العميل"]
["شـركـة /",{"$f":"IF(F7>0,VLOOKUP(F7,cli,2,0),\"\")","v":""},"الرجاء إعادة البالتات الفارغة من الموقع"]
["الموقع /",{"$f":"IF(F7>0,VLOOKUP(F7,data,5,0),\"\")","v":""},"عدم إستكمال بيانات إستلام السائق من العميل يعنى عدم وجود بالتات مرتجع"]
["رقم الهاتف/",{"$f":"IF(F7>0,VLOOKUP(F7,data,4,0),\"\")","v":""},"إستلام السائق من العميل",null,"إستلام مخازن الشركة"]
[null,null,"عدد البالتات المرتجع","توقيع السائق","عدد البالتات المرتجع","توقيع المخازن"]
[]
[]
["كود المنتج","اسم المنتج","عدد البالتات","محتوى البالتة","إجمالي الكمية","ملاحظات &\n تاريخ الإنتاج"]
[null,{"$f":"IF(A17>0,VLOOKUP(A17,or,2,0),\"\")","v":""},5,null,{"$f":"C17*D17","v":0}]
[null,"",4,null,{"$f":"C18*D18","v":0}]
[null,"",3,null,0]
[null,"",null,null,0]
[null,"",null,null,0]
[null,"",null,null,0]
[null,"",null,null,0]
[null,"",null,null,0]
[null,"",null,null,0]
[null,"",null,null,0]
[null,"",null,null,0]
[null,"",null,null,0]
[null,"",null,null,0]
["إستلمت أنا الموقع أدناه البضاعة الموضحة أعلاه في عهدتى بصفة أمانة بحالة جيدة وأتعهد بتسليمها إلى جهة الوصول بحالتها "]
["وأقر تضامنى مع مالك السيارة  لتحمل أي مسئولية تقع على البضاعة من عجز أو تلف أو فقدان أو حوادث أو تأخير في تسليم"]
[" البضاعة المشحونة بالسيارة قيادتى مسئولية تامة وتوقيعى على هذا إقرار منى بذلك.",null,null,null,"إجمالي عدد البالتات المستلمة"]
[null,null,null,null,"خشب بلدى",{"$f":"SUM(C17:C29)","v":12}]
["إدارة المخازن","الأمن\nتم مراجعة الكميات والأصناف المنصرفة","إدارة الجودة",null,"مالك السيارة"]
[null,"          الإسم :","الإسم :",null,"إسم السائق"]
["التوقيع :","         التوقيع :","التوقيع :",null,"رقم السيارة"]
[null,"خاص بالعميل",null,null,"توقيع السائق"]
[null,"توقيع المستلم /",null,null,"يــعــتــمــد ،،،"]
[]
[]
[]
[]
[null,null,null,null,"التاريخ"]
[null,null,null,null,"رقم البوليصة"]
[null,null,null,null,"رقم أمر التوريد"]
[null,null,null,null,"كود العميل"]
[2]
["بيانات العميل"]
["شـركـة /",{"$f":"IF(F46>0,VLOOKUP(F46,cli,2,0),\"\")","v":""},"الرجاء إعادة البالتات الفارغة من الموقع"]
["الموقع /",{"$f":"IF(F46>0,VLOOKUP(F46,data,5,0),\"\")","v":""},"عدم إستكمال بيانات إستلام السائق من العميل يعنى عدم وجود بالتات مرتجع"]
["رقم الهاتف/",{"$f":"IF(F46>0,VLOOKUP(F46,data,4,0),\"\")","v":""},"إستلام السائق من العميل",null,"إستلام مخازن الشركة"]
[null,null,"عدد البالتات المرتجع","توقيع السائق","عدد البالتات المرتجع","توقيع المخازن"]
[]
[]
["كود المنتج","اسم المنتج","عدد البالتات","محتوى البالتة","إجمالي الكمية","ملاحظات &\n تاريخ الإنتاج"]
[null,{"$f":"IF(A56>0,VLOOKUP(A56,or,2,0),\"\")","v":""},null,null,{"$f":"C56*D56","v":0}]
[null,"",null,null,{"$f":"C57*D57","v":0}]
[null,"",null,null,0]
[null,"",null,null,0]
[null,"",null,null,0]
[null,"",null,null,0]
[null,"",null,null,0]
[null,"",null,null,0]
[null,"",null,null,0]
[null,"",null,null,0]
[null,"",null,null,0]
[null,"",null,null,0]
[null,"",null,null,0]
["إستلمت أنا الموقع أدناه البضاعة الموضحة أعلاه في عهدتى بصفة أمانة بحالة جيدة وأتعهد بتسليمها إلى جهة الوصول بحالتها "]
["وأقر تضامنى مع مالك السيارة  لتحمل أي مسئولية تقع على البضاعة من عجز أو تلف أو فقدان أو حوادث أو تأخير في تسليم"]
[" البضاعة المشحونة بالسيارة قيادتى مسئولية تامة وتوقيعى على هذا إقرار منى بذلك.",null,null,null,"إجمالي عدد البالتات المستلمة"]
[null,null,null,null,"خشب بلدى",{"$f":"SUM(C56:C68)","v":0}]
["إدارة المخازن","الأمن\nتم مراجعة الكميات والأصناف المنصرفة","إدارة الجودة",null,"مالك السيارة"]
[null,"          الإسم :","الإسم :",null,"إسم السائق"]
["التوقيع :","         التوقيع :","التوقيع :",null,"رقم السيارة"]
[null,"خاص بالعميل",null,null,"توقيع السائق"]
[null,"توقيع المستلم /",null,null,"يــعــتــمــد ،،،"]
[]
[]
[]
[]
[null,null,null,null,"التاريخ"]
[null,null,null,null,"رقم البوليصة"]
[null,null,null,null,"رقم أمر التوريد"]
[null,null,null,null,"كود العميل"]
[3]
["بيانات العميل"]
["شـركـة /",{"$f":"IF(F85>0,VLOOKUP(F85,cli,2,0),\"\")","v":""},"الرجاء إعادة البالتات الفارغة من الموقع"]
["الموقع /",{"$f":"IF(F85>0,VLOOKUP(F85,data,5,0),\"\")","v":""},"عدم إستكمال بيانات إستلام السائق من العميل يعنى عدم وجود بالتات مرتجع"]
["رقم الهاتف/",{"$f":"IF(F85>0,VLOOKUP(F85,data,4,0),\"\")","v":""},"إستلام السائق من العميل",null,"إستلام مخازن الشركة"]
[null,null,"عدد البالتات المرتجع","توقيع السائق","عدد البالتات المرتجع","توقيع المخازن"]
[]
[]
["كود المنتج","اسم المنتج","عدد البالتات","محتوى البالتة","إجمالي الكمية","ملاحظات &\n تاريخ الإنتاج"]
[null,{"$f":"IF(A95>0,VLOOKUP(A95,or,2,0),\"\")","v":""},null,null,{"$f":"C95*D95","v":0}]
[null,"",null,null,0]
[null,"",null,null,0]
[null,"",null,null,0]
[null,"",null,null,0]
[null,"",null,null,0]
[null,"",null,null,0]
[null,"",null,null,0]
[null,"",null,null,0]
[null,"",null,null,0]
[null,"",null,null,0]
[null,"",null,null,0]
[null,"",null,null,0]
["إستلمت أنا الموقع أدناه البضاعة الموضحة أعلاه في عهدتى بصفة أمانة بحالة جيدة وأتعهد بتسليمها إلى جهة الوصول بحالتها "]
["وأقر تضامنى مع مالك السيارة  لتحمل أي مسئولية تقع على البضاعة من عجز أو تلف أو فقدان أو حوادث أو تأخير في تسليم"]
[" البضاعة المشحونة بالسيارة قيادتى مسئولية تامة وتوقيعى على هذا إقرار منى بذلك.",null,null,null,"إجمالي عدد البالتات المستلمة"]
[null,null,null,null,"خشب بلدى",{"$f":"SUM(C95:C107)","v":0}]
["إدارة المخازن","الأمن\nتم مراجعة الكميات والأصناف المنصرفة","إدارة الجودة",null,"مالك السيارة"]
[null,"          الإسم :","الإسم :",null,"إسم السائق"]
["التوقيع :","         التوقيع :","التوقيع :",null,"رقم السيارة"]
[null,"خاص بالعميل",null,null,"توقيع السائق"]
[null,"توقيع المستلم /",null,null,"يــعــتــمــد ،،،"]
[]
[]
[]
[]
[null,null,null,null,"التاريخ"]
[null,null,null,null,"رقم البوليصة"]
[null,null,null,null,"رقم أمر التوريد"]
[null,null,null,null,"كود العميل"]
[]
["بيانات العميل"]
["شـركـة /",{"$f":"IF(F124>0,VLOOKUP(F124,cli,2,0),\"\")","v":""},"الرجاء إعادة البالتات الفارغة من الموقع"]
["الموقع /",{"$f":"IF(F124>0,VLOOKUP(F124,data,5,0),\"\")","v":""},"عدم إستكمال بيانات إستلام السائق من العميل يعنى عدم وجود بالتات مرتجع"]
["رقم الهاتف/",{"$f":"IF(F124>0,VLOOKUP(F124,data,4,0),\"\")","v":""},"إستلام السائق من العميل",null,"إستلام مخازن الشركة"]
[null,null,"عدد البالتات المرتجع","توقيع السائق","عدد البالتات المرتجع","توقيع المخازن"]
[]
[]
["كود المنتج","اسم المنتج","عدد البالتات","محتوى البالتة","إجمالي الكمية","ملاحظات &\n تاريخ الإنتاج"]
[null,{"$f":"IF(A134>0,VLOOKUP(A134,or,2,0),\"\")","v":""},null,null,{"$f":"C134*D134","v":0}]
[null,"",null,null,0]
[null,"",null,null,0]
[null,"",null,null,0]
[null,"",null,null,0]
[null,"",null,null,0]
[null,"",null,null,0]
[null,"",null,null,0]
[null,"",null,null,0]
[null,"",null,null,0]
[null,"",null,null,0]
[null,"",null,null,0]
[null,"",null,null,0]
["إستلمت أنا الموقع أدناه البضاعة الموضحة أعلاه في عهدتى بصفة أمانة بحالة جيدة وأتعهد بتسليمها إلى جهة الوصول بحالتها "]
["وأقر تضامنى مع مالك السيارة  لتحمل أي مسئولية تقع على البضاعة من عجز أو تلف أو فقدان أو حوادث أو تأخير في تسليم"]
[" البضاعة المشحونة بالسيارة قيادتى مسئولية تامة وتوقيعى على هذا إقرار منى بذلك.",null,null,null,"إجمالي عدد البالتات المستلمة"]
[null,null,null,null,"خشب بلدى",{"$f":"SUM(C134:C146)","v":0}]
["إدارة المخازن","الأمن\nتم مراجعة الكميات والأصناف المنصرفة","إدارة الجودة",null,"مالك السيارة"]
[null,"          الإسم :","الإسم :",null,"إسم السائق"]
["التوقيع :","         التوقيع :","التوقيع :",null,"رقم السيارة"]
[null,"خاص بالعميل",null,null,"توقيع السائق"]
[null,"توقيع المستلم /",null,null,"يــعــتــمــد ،،،"]
[]
[]
[]
[]
[null,null,null,null,"التاريخ"]
[null,null,null,null,"رقم البوليصة"]
[null,null,null,null,"رقم أمر التوريد"]
[null,null,null,null,"كود العميل"]
[]
["بيانات العميل"]
["شـركـة /",{"$f":"IF(F163>0,VLOOKUP(F163,cli,2,0),\"\")","v":""},"الرجاء إعادة البالتات الفارغة من الموقع"]
["الموقع /",{"$f":"IF(F163>0,VLOOKUP(F163,data,5,0),\"\")","v":""},"عدم إستكمال بيانات إستلام السائق من العميل يعنى عدم وجود بالتات مرتجع"]
["رقم الهاتف/",{"$f":"IF(F163>0,VLOOKUP(F163,data,4,0),\"\")","v":""},"إستلام السائق من العميل",null,"إستلام مخازن الشركة"]
[null,null,"عدد البالتات المرتجع","توقيع السائق","عدد البالتات المرتجع","توقيع المخازن"]
[]
[]
["كود المنتج","اسم المنتج","عدد البالتات","محتوى البالتة","إجمالي الكمية","ملاحظات &\n تاريخ الإنتاج"]
[null,{"$f":"IF(A173>0,VLOOKUP(A173,or,2,0),\"\")","v":""},null,null,{"$f":"C173*D173","v":0}]
[null,"",null,null,0]
[null,"",null,null,0]
[null,"",null,null,0]
[null,"",null,null,0]
[null,"",null,null,0]
[null,"",null,null,0]
[null,"",null,null,0]
[null,"",null,null,0]
[null,"",null,null,0]
[null,"",null,null,0]
[null,"",null,null,0]
[null,"",null,null,0]
["إستلمت أنا الموقع أدناه البضاعة الموضحة أعلاه في عهدتى بصفة أمانة بحالة جيدة وأتعهد بتسليمها إلى جهة الوصول بحالتها "]
["وأقر تضامنى مع مالك السيارة  لتحمل أي مسئولية تقع على البضاعة من عجز أو تلف أو فقدان أو حوادث أو تأخير في تسليم"]
[" البضاعة المشحونة بالسيارة قيادتى مسئولية تامة وتوقيعى على هذا إقرار منى بذلك.",null,null,null,"إجمالي عدد البالتات المستلمة"]
[null,null,null,null,"خشب بلدى",{"$f":"SUM(C173:C185)","v":0}]
["إدارة المخازن","الأمن\nتم مراجعة الكميات والأصناف المنصرفة","إدارة الجودة",null,"مالك السيارة"]
[null,"          الإسم :","الإسم :",null,"إسم السائق"]
["التوقيع :","         التوقيع :","التوقيع :",null,"رقم السيارة"]
[null,"خاص بالعميل",null,null,"توقيع السائق"]
[null,"توقيع المستلم /",null,null,"يــعــتــمــد ،،،"]
[]
[]
[]
[]
[null,null,null,null,"التاريخ"]
[null,null,null,null,"رقم البوليصة"]
[null,null,null,null,"رقم أمر التوريد"]
[null,null,null,null,"كود العميل"]
[]
["بيانات العميل"]
["شـركـة /",{"$f":"IF(F202>0,VLOOKUP(F202,cli,2,0),\"\")","v":""},"الرجاء إعادة البالتات الفارغة من الموقع"]
["الموقع /",{"$f":"IF(F202>0,VLOOKUP(F202,data,5,0),\"\")","v":""},"عدم إستكمال بيانات إستلام السائق من العميل يعنى عدم وجود بالتات مرتجع"]
["رقم الهاتف/",{"$f":"IF(F202>0,VLOOKUP(F202,data,4,0),\"\")","v":""},"إستلام السائق من العميل",null,"إستلام مخازن الشركة"]
[null,null,"عدد البالتات المرتجع","توقيع السائق","عدد البالتات المرتجع","توقيع المخازن"]
[]
[]
["كود المنتج","اسم المنتج","عدد البالتات","محتوى البالتة","إجمالي الكمية","ملاحظات &\n تاريخ الإنتاج"]
[null,{"$f":"IF(A212>0,VLOOKUP(A212,or,2,0),\"\")","v":""},null,null,{"$f":"C212*D212","v":0}]
[null,"",null,null,0]
[null,"",null,null,0]
[null,"",null,null,0]
[null,"",null,null,0]
[null,"",null,null,0]
[null,"",null,null,0]
[null,"",null,null,0]
[null,"",null,null,0]
[null,"",null,null,0]
[null,"",null,null,0]
[null,"",null,null,0]
[null,"",null,null,0]
["إستلمت أنا الموقع أدناه البضاعة الموضحة أعلاه في عهدتى بصفة أمانة بحالة جيدة وأتعهد بتسليمها إلى جهة الوصول بحالتها "]
["وأقر تضامنى مع مالك السيارة  لتحمل أي مسئولية تقع على البضاعة من عجز أو تلف أو فقدان أو حوادث أو تأخير في تسليم"]
[" البضاعة المشحونة بالسيارة قيادتى مسئولية تامة وتوقيعى على هذا إقرار منى بذلك.",null,null,null,"إجمالي عدد البالتات المستلمة"]
[null,null,null,null,"خشب بلدى",{"$f":"SUM(C212:C224)","v":0}]
["إدارة المخازن","الأمن\nتم مراجعة الكميات والأصناف المنصرفة","إدارة الجودة",null,"مالك السيارة"]
[null,"          الإسم :","الإسم :",null,"إسم السائق"]
["التوقيع :","         التوقيع :","التوقيع :",null,"رقم السيارة"]
[null,"خاص بالعميل",null,null,"توقيع السائق"]
[null,"توقيع المستلم /",null,null,"يــعــتــمــد ،،،"]
[]
[]
[]
[]
[null,null,null,null,"التاريخ"]
[null,null,null,null,"رقم البوليصة"]
[null,null,null,null,"رقم أمر التوريد"]
[null,null,null,null,"كود العميل"]
[]
["بيانات العميل"]
["شـركـة /",{"$f":"IF(F241>0,VLOOKUP(F241,cli,2,0),\"\")","v":""},"الرجاء إعادة البالتات الفارغة من الموقع"]
["الموقع /",{"$f":"IF(F241>0,VLOOKUP(F241,data,5,0),\"\")","v":""},"عدم إستكمال بيانات إستلام السائق من العميل يعنى عدم وجود بالتات مرتجع"]
["رقم الهاتف/",{"$f":"IF(F241>0,VLOOKUP(F241,data,4,0),\"\")","v":""},"إستلام السائق من العميل",null,"إستلام مخازن الشركة"]
[null,null,"عدد البالتات المرتجع","توقيع السائق","عدد البالتات المرتجع","توقيع المخازن"]
[]
[]
["كود المنتج","اسم المنتج","عدد البالتات","محتوى البالتة","إجمالي الكمية","ملاحظات &\n تاريخ الإنتاج"]
[null,{"$f":"IF(A251>0,VLOOKUP(A251,or,2,0),\"\")","v":""},null,null,{"$f":"C251*D251","v":0}]
[null,"",null,null,0]
[null,"",null,null,0]
[null,"",null,null,0]
[null,"",null,null,0]
[null,"",null,null,0]
[null,"",null,null,0]
[null,"",null,null,0]
[null,"",null,null,0]
[null,"",null,null,0]
[null,"",null,null,0]
[null,"",null,null,0]
[null,"",null,null,0]
["إستلمت أنا الموقع أدناه البضاعة الموضحة أعلاه في عهدتى بصفة أمانة بحالة جيدة وأتعهد بتسليمها إلى جهة الوصول بحالتها "]
["وأقر تضامنى مع مالك السيارة  لتحمل أي مسئولية تقع على البضاعة من عجز أو تلف أو فقدان أو حوادث أو تأخير في تسليم"]
[" البضاعة المشحونة بالسيارة قيادتى مسئولية تامة وتوقيعى على هذا إقرار منى بذلك.",null,null,null,"إجمالي عدد البالتات المستلمة"]
[null,null,null,null,"خشب بلدى",{"$f":"SUM(C251:C263)","v":0}]
["إدارة المخازن","الأمن\nتم مراجعة الكميات والأصناف المنصرفة","إدارة الجودة",null,"مالك السيارة"]
[null,"          الإسم :","الإسم :",null,"إسم السائق"]
["التوقيع :","         التوقيع :","التوقيع :",null,"رقم السيارة"]
[null,"خاص بالعميل",null,null,"توقيع السائق"]
[null,"توقيع المستلم /",null,null,"يــعــتــمــد ،،،"]
[]
[]
[]
[]
[null,null,null,null,"التاريخ"]
[null,null,null,null,"رقم البوليصة"]
[null,null,null,null,"رقم أمر التوريد"]
[null,null,null,null,"كود العميل"]
[]
["بيانات العميل"]
["شـركـة /",{"$f":"IF(F280>0,VLOOKUP(F280,cli,2,0),\"\")","v":""},"الرجاء إعادة البالتات الفارغة من الموقع"]
["الموقع /",{"$f":"IF(F280>0,VLOOKUP(F280,data,5,0),\"\")","v":""},"عدم إستكمال بيانات إستلام السائق من العميل يعنى عدم وجود بالتات مرتجع"]
["رقم الهاتف/",{"$f":"IF(F280>0,VLOOKUP(F280,data,4,0),\"\")","v":""},"إستلام السائق من العميل",null,"إستلام مخازن الشركة"]
[null,null,"عدد البالتات المرتجع","توقيع السائق","عدد البالتات المرتجع","توقيع المخازن"]
[]
[]
["كود المنتج","اسم المنتج","عدد البالتات","محتوى البالتة","إجمالي الكمية","ملاحظات &\n تاريخ الإنتاج"]
[null,{"$f":"IF(A290>0,VLOOKUP(A290,or,2,0),\"\")","v":""},null,null,{"$f":"C290*D290","v":0}]
[null,"",null,null,0]
[null,"",null,null,0]
[null,"",null,null,0]
[null,"",null,null,0]
[null,"",null,null,0]
[null,"",null,null,0]
[null,"",null,null,0]
[null,"",null,null,0]
[null,"",null,null,0]
[null,"",null,null,0]
[null,"",null,null,0]
[null,"",null,null,0]
["إستلمت أنا الموقع أدناه البضاعة الموضحة أعلاه في عهدتى بصفة أمانة بحالة جيدة وأتعهد بتسليمها إلى جهة الوصول بحالتها "]
["وأقر تضامنى مع مالك السيارة  لتحمل أي مسئولية تقع على البضاعة من عجز أو تلف أو فقدان أو حوادث أو تأخير في تسليم"]
[" البضاعة المشحونة بالسيارة قيادتى مسئولية تامة وتوقيعى على هذا إقرار منى بذلك.",null,null,null,"إجمالي عدد البالتات المستلمة"]
[null,null,null,null,"خشب بلدى",{"$f":"SUM(C290:C302)","v":0}]
["إدارة المخازن","الأمن\nتم مراجعة الكميات والأصناف المنصرفة","إدارة الجودة",null,"مالك السيارة"]
[null,"          الإسم :","الإسم :",null,"إسم السائق"]
["التوقيع :","         التوقيع :","التوقيع :",null,"رقم السيارة"]
[null,"خاص بالعميل",null,null,"توقيع السائق"]
[null,"توقيع المستلم /",null,null,"يــعــتــمــد ،،،"]
[]
[]
[]
[]
[null,null,null,null,"التاريخ"]
[null,null,null,null,"رقم البوليصة"]
[null,null,null,null,"رقم أمر التوريد"]
[null,null,null,null,"كود العميل"]
[]
["بيانات العميل"]
["شـركـة /",{"$f":"IF(F319>0,VLOOKUP(F319,cli,2,0),\"\")","v":""},"الرجاء إعادة البالتات الفارغة من الموقع"]
["الموقع /",{"$f":"IF(F319>0,VLOOKUP(F319,data,5,0),\"\")","v":""},"عدم إستكمال بيانات إستلام السائق من العميل يعنى عدم وجود بالتات مرتجع"]
["رقم الهاتف/",{"$f":"IF(F319>0,VLOOKUP(F319,data,4,0),\"\")","v":""},"إستلام السائق من العميل",null,"إستلام مخازن الشركة"]
[null,null,"عدد البالتات المرتجع","توقيع السائق","عدد البالتات المرتجع","توقيع المخازن"]
[]
[]
["كود المنتج","اسم المنتج","عدد البالتات","محتوى البالتة","إجمالي الكمية","ملاحظات &\n تاريخ الإنتاج"]
[null,{"$f":"IF(A329>0,VLOOKUP(A329,or,2,0),\"\")","v":""},null,null,{"$f":"C329*D329","v":0}]
[null,"",null,null,0]
[null,"",null,null,0]
[null,"",null,null,0]
[null,"",null,null,0]
[null,"",null,null,0]
[null,"",null,null,0]
[null,"",null,null,0]
[null,"",null,null,0]
[null,"",null,null,0]
[null,"",null,null,0]
[null,"",null,null,0]
[null,"",null,null,0]
["إستلمت أنا الموقع أدناه البضاعة الموضحة أعلاه في عهدتى بصفة أمانة بحالة جيدة وأتعهد بتسليمها إلى جهة الوصول بحالتها "]
["وأقر تضامنى مع مالك السيارة  لتحمل أي مسئولية تقع على البضاعة من عجز أو تلف أو فقدان أو حوادث أو تأخير في تسليم"]
[" البضاعة المشحونة بالسيارة قيادتى مسئولية تامة وتوقيعى على هذا إقرار منى بذلك.",null,null,null,"إجمالي عدد البالتات المستلمة"]
[null,null,null,null,"خشب بلدى",{"$f":"SUM(C329:C341)","v":0}]
["إدارة المخازن","الأمن\nتم مراجعة الكميات والأصناف المنصرفة","إدارة الجودة",null,"مالك السيارة"]
[null,"          الإسم :","الإسم :",null,"إسم السائق"]
["التوقيع :","         التوقيع :","التوقيع :",null,"رقم السيارة"]
[null,"خاص بالعميل",null,null,"توقيع السائق"]
[null,"توقيع المستلم /",null,null,"يــعــتــمــد ،،،"]
[]
[]
[]
[]
[null,null,null,null,"التاريخ"]
[null,null,null,null,"رقم البوليصة"]
[null,null,null,null,"رقم أمر التوريد"]
[null,null,null,null,"كود العميل"]
[]
["بيانات العميل"]
["شـركـة /",{"$f":"IF(F358>0,VLOOKUP(F358,cli,2,0),\"\")","v":""},"الرجاء إعادة البالتات الفارغة من الموقع"]
["الموقع /",{"$f":"IF(F358>0,VLOOKUP(F358,data,5,0),\"\")","v":""},"عدم إستكمال بيانات إستلام السائق من العميل يعنى عدم وجود بالتات مرتجع"]
["رقم الهاتف/",{"$f":"IF(F358>0,VLOOKUP(F358,data,4,0),\"\")","v":""},"إستلام السائق من العميل",null,"إستلام مخازن الشركة"]
[null,null,"عدد البالتات المرتجع","توقيع السائق","عدد البالتات المرتجع","توقيع المخازن"]
[]
[]
["كود المنتج","اسم المنتج","عدد البالتات","محتوى البالتة","إجمالي الكمية","ملاحظات &\n تاريخ الإنتاج"]
[null,{"$f":"IF(A368>0,VLOOKUP(A368,or,2,0),\"\")","v":""},null,null,{"$f":"C368*D368","v":0}]
[null,"",null,null,0]
[null,"",null,null,0]
[null,"",null,null,0]
[null,"",null,null,0]
[null,"",null,null,0]
[null,"",null,null,0]
[null,"",null,null,0]
[null,"",null,null,0]
[null,"",null,null,0]
[null,"",null,null,0]
[null,"",null,null,0]
[null,"",null,null,0]
["إستلمت أنا الموقع أدناه البضاعة الموضحة أعلاه في عهدتى بصفة أمانة بحالة جيدة وأتعهد بتسليمها إلى جهة الوصول بحالتها "]
["وأقر تضامنى مع مالك السيارة  لتحمل أي مسئولية تقع على البضاعة من عجز أو تلف أو فقدان أو حوادث أو تأخير في تسليم"]
[" البضاعة المشحونة بالسيارة قيادتى مسئولية تامة وتوقيعى على هذا إقرار منى بذلك.",null,null,null,"إجمالي عدد البالتات المستلمة"]
[null,null,null,null,"خشب بلدى",{"$f":"SUM(C368:C380)","v":0}]
["إدارة المخازن","الأمن\nتم مراجعة الكميات والأصناف المنصرفة","إدارة الجودة",null,"مالك السيارة"]
[null,"          الإسم :","الإسم :",null,"إسم السائق"]
["التوقيع :","         التوقيع :","التوقيع :",null,"رقم السيارة"]
[null,"خاص بالعميل",null,null,"توقيع السائق"]
[null,"توقيع المستلم /",null,null,"يــعــتــمــد ،،،"]
[]
[]
[]
[]
[null,null,null,null,"التاريخ"]
[null,null,null,null,"رقم البوليصة"]
[null,null,null,null,"رقم أمر التوريد"]
[null,null,null,null,"كود العميل"]
[]
["بيانات العميل"]
["شـركـة /",{"$f":"IF(F397>0,VLOOKUP(F397,cli,2,0),\"\")","v":""},"الرجاء إعادة البالتات الفارغة من الموقع"]
["الموقع /",{"$f":"IF(F397>0,VLOOKUP(F397,data,5,0),\"\")","v":""},"عدم إستكمال بيانات إستلام السائق من العميل يعنى عدم وجود بالتات مرتجع"]
["رقم الهاتف/",{"$f":"IF(F397>0,VLOOKUP(F397,data,4,0),\"\")","v":""},"إستلام السائق من العميل",null,"إستلام مخازن الشركة"]
[null,null,"عدد البالتات المرتجع","توقيع السائق","عدد البالتات المرتجع","توقيع المخازن"]
[]
[]
["كود المنتج","اسم المنتج","عدد البالتات","محتوى البالتة","إجمالي الكمية","ملاحظات &\n تاريخ الإنتاج"]
[null,{"$f":"IF(A407>0,VLOOKUP(A407,or,2,0),\"\")","v":""},null,null,{"$f":"C407*D407","v":0}]
[null,"",null,null,0]
[null,"",null,null,0]
[null,"",null,null,0]
[null,"",null,null,0]
[null,"",null,null,0]
[null,"",null,null,0]
[null,"",null,null,0]
[null,"",null,null,0]
[null,"",null,null,0]
[null,"",null,null,0]
[null,"",null,null,0]
[null,"",null,null,0]
["إستلمت أنا الموقع أدناه البضاعة الموضحة أعلاه في عهدتى بصفة أمانة بحالة جيدة وأتعهد بتسليمها إلى جهة الوصول بحالتها "]
["وأقر تضامنى مع مالك السيارة  لتحمل أي مسئولية تقع على البضاعة من عجز أو تلف أو فقدان أو حوادث أو تأخير في تسليم"]
[" البضاعة المشحونة بالسيارة قيادتى مسئولية تامة وتوقيعى على هذا إقرار منى بذلك.",null,null,null,"إجمالي عدد البالتات المستلمة"]
[null,null,null,null,"خشب بلدى",{"$f":"SUM(C407:C419)","v":0}]
["إدارة المخازن","الأمن\nتم مراجعة الكميات والأصناف المنصرفة","إدارة الجودة",null,"مالك السيارة"]
[null,"          الإسم :","الإسم :",null,"إسم السائق"]
["التوقيع :","         التوقيع :","التوقيع :",null,"رقم السيارة"]
[null,"خاص بالعميل",null,null,"توقيع السائق"]
[null,"توقيع المستلم /",null,null,"يــعــتــمــد ،،،"]
[]
[]
[]
[]
[null,null,null,null,"التاريخ"]
[null,null,null,null,"رقم البوليصة"]
[null,null,null,null,"رقم أمر التوريد"]
[null,null,null,null,"كود العميل"]
[]
["بيانات العميل"]
["شـركـة /",{"$f":"IF(F436>0,VLOOKUP(F436,cli,2,0),\"\")","v":""},"الرجاء إعادة البالتات الفارغة من الموقع"]
["الموقع /",{"$f":"IF(F436>0,VLOOKUP(F436,data,5,0),\"\")","v":""},"عدم إستكمال بيانات إستلام السائق من العميل يعنى عدم وجود بالتات مرتجع"]
["رقم الهاتف/",{"$f":"IF(F436>0,VLOOKUP(F436,data,4,0),\"\")","v":""},"إستلام السائق من العميل",null,"إستلام مخازن الشركة"]
[null,null,"عدد البالتات المرتجع","توقيع السائق","عدد البالتات المرتجع","توقيع المخازن"]
[]
[]
["كود المنتج","اسم المنتج","عدد البالتات","محتوى البالتة","إجمالي الكمية","ملاحظات &\n تاريخ الإنتاج"]
[null,{"$f":"IF(A446>0,VLOOKUP(A446,or,2,0),\"\")","v":""},null,null,{"$f":"C446*D446","v":0}]
[null,"",null,null,0]
[null,"",null,null,0]
[null,"",null,null,0]
[null,"",null,null,0]
[null,"",null,null,0]
[null,"",null,null,0]
[null,"",null,null,0]
[null,"",null,null,0]
[null,"",null,null,0]
[null,"",null,null,0]
[null,"",null,null,0]
[null,"",null,null,0]
["إستلمت أنا الموقع أدناه البضاعة الموضحة أعلاه في عهدتى بصفة أمانة بحالة جيدة وأتعهد بتسليمها إلى جهة الوصول بحالتها "]
["وأقر تضامنى مع مالك السيارة  لتحمل أي مسئولية تقع على البضاعة من عجز أو تلف أو فقدان أو حوادث أو تأخير في تسليم"]
[" البضاعة المشحونة بالسيارة قيادتى مسئولية تامة وتوقيعى على هذا إقرار منى بذلك.",null,null,null,"إجمالي عدد البالتات المستلمة"]
[null,null,null,null,"خشب بلدى",{"$f":"SUM(C446:C458)","v":0}]
["إدارة المخازن","الأمن\nتم مراجعة الكميات والأصناف المنصرفة","إدارة الجودة",null,"مالك السيارة"]
[null,"          الإسم :","الإسم :",null,"إسم السائق"]
["التوقيع :","         التوقيع :","التوقيع :",null,"رقم السيارة"]
[null,"خاص بالعميل",null,null,"توقيع السائق"]
[null,"توقيع المستلم /",null,null,"يــعــتــمــد ،،،"]
[]
[]
[]
[]
[null,null,null,null,"التاريخ"]
[null,null,null,null,"رقم البوليصة"]
[null,null,null,null,"رقم أمر التوريد"]
[null,null,null,null,"كود العميل"]
[]
["بيانات العميل"]
["شـركـة /",{"$f":"IF(F475>0,VLOOKUP(F475,cli,2,0),\"\")","v":""},"الرجاء إعادة البالتات الفارغة من الموقع"]
["الموقع /",{"$f":"IF(F475>0,VLOOKUP(F475,data,5,0),\"\")","v":""},"عدم إستكمال بيانات إستلام السائق من العميل يعنى عدم وجود بالتات مرتجع"]
["رقم الهاتف/",{"$f":"IF(F475>0,VLOOKUP(F475,data,4,0),\"\")","v":""},"إستلام السائق من العميل",null,"إستلام مخازن الشركة"]
[null,null,"عدد البالتات المرتجع","توقيع السائق","عدد البالتات المرتجع","توقيع المخازن"]
[]
[]
["كود المنتج","اسم المنتج","عدد البالتات","محتوى البالتة","إجمالي الكمية","ملاحظات &\n تاريخ الإنتاج"]
[null,{"$f":"IF(A485>0,VLOOKUP(A485,or,2,0),\"\")","v":""},null,null,{"$f":"C485*D485","v":0}]
[null,"",null,null,0]
[null,"",null,null,0]
[null,"",null,null,0]
[null,"",null,null,0]
[null,"",null,null,0]
[null,"",null,null,0]
[null,"",null,null,0]
[null,"",null,null,0]
[null,"",null,null,0]
[null,"",null,null,0]
[null,"",null,null,0]
[null,"",null,null,0]
["إستلمت أنا الموقع أدناه البضاعة الموضحة أعلاه في عهدتى بصفة أمانة بحالة جيدة وأتعهد بتسليمها إلى جهة الوصول بحالتها "]
["وأقر تضامنى مع مالك السيارة  لتحمل أي مسئولية تقع على البضاعة من عجز أو تلف أو فقدان أو حوادث أو تأخير في تسليم"]
[" البضاعة المشحونة بالسيارة قيادتى مسئولية تامة وتوقيعى على هذا إقرار منى بذلك.",null,null,null,"إجمالي عدد البالتات المستلمة"]
[null,null,null,null,"خشب بلدى",{"$f":"SUM(C485:C497)","v":0}]
["إدارة المخازن","الأمن\nتم مراجعة الكميات والأصناف المنصرفة","إدارة الجودة",null,"مالك السيارة"]
[null,"          الإسم :","الإسم :",null,"إسم السائق"]
["التوقيع :","         التوقيع :","التوقيع :",null,"رقم السيارة"]
[null,"خاص بالعميل",null,null,"توقيع السائق"]
[null,"توقيع المستلم /",null,null,"يــعــتــمــد ،،،"]
[]
[]
[]
[]
[null,null,null,null,"التاريخ"]
[null,null,null,null,"رقم البوليصة"]
[null,null,null,null,"رقم أمر التوريد"]
[null,null,null,null,"كود العميل"]
[]
["بيانات العميل"]
["شـركـة /",{"$f":"IF(F514>0,VLOOKUP(F514,cli,2,0),\"\")","v":""},"الرجاء إعادة البالتات الفارغة من الموقع"]
["الموقع /",{"$f":"IF(F514>0,VLOOKUP(F514,data,5,0),\"\")","v":""},"عدم إستكمال بيانات إستلام السائق من العميل يعنى عدم وجود بالتات مرتجع"]
["رقم الهاتف/",{"$f":"IF(F514>0,VLOOKUP(F514,data,4,0),\"\")","v":""},"إستلام السائق من العميل",null,"إستلام مخازن الشركة"]
[null,null,"عدد البالتات المرتجع","توقيع السائق","عدد البالتات المرتجع","توقيع المخازن"]
[]
[]
["كود المنتج","اسم المنتج","عدد البالتات","محتوى البالتة","إجمالي الكمية","ملاحظات &\n تاريخ الإنتاج"]
[null,{"$f":"IF(A524>0,VLOOKUP(A524,or,2,0),\"\")","v":""},null,null,{"$f":"C524*D524","v":0}]
[null,"",null,null,0]
[null,"",null,null,0]
[null,"",null,null,0]
[null,"",null,null,0]
[null,"",null,null,0]
[null,"",null,null,0]
[null,"",null,null,0]
[null,"",null,null,0]
[null,"",null,null,0]
[null,"",null,null,0]
[null,"",null,null,0]
[null,"",null,null,0]
["إستلمت أنا الموقع أدناه البضاعة الموضحة أعلاه في عهدتى بصفة أمانة بحالة جيدة وأتعهد بتسليمها إلى جهة الوصول بحالتها "]
["وأقر تضامنى مع مالك السيارة  لتحمل أي مسئولية تقع على البضاعة من عجز أو تلف أو فقدان أو حوادث أو تأخير في تسليم"]
[" البضاعة المشحونة بالسيارة قيادتى مسئولية تامة وتوقيعى على هذا إقرار منى بذلك.",null,null,null,"إجمالي عدد البالتات المستلمة"]
[null,null,null,null,"خشب بلدى",{"$f":"SUM(C524:C536)","v":0}]
["إدارة المخازن","الأمن\nتم مراجعة الكميات والأصناف المنصرفة","إدارة الجودة",null,"مالك السيارة"]
[null,"          الإسم :","الإسم :",null,"إسم السائق"]
["التوقيع :","         التوقيع :","التوقيع :",null,"رقم السيارة"]
[null,"خاص بالعميل",null,null,"توقيع السائق"]
[null,"توقيع المستلم /",null,null,"يــعــتــمــد ،،،"]
[]
[]
[]
[]
[null,null,null,null,"التاريخ"]
[null,null,null,null,"رقم البوليصة"]
[null,null,null,null,"رقم أمر التوريد"]
[null,null,null,null,"كود العميل"]
[]
["بيانات العميل"]
["شـركـة /",{"$f":"IF(F553>0,VLOOKUP(F553,cli,2,0),\"\")","v":""},"الرجاء إعادة البالتات الفارغة من الموقع"]
["الموقع /",{"$f":"IF(F553>0,VLOOKUP(F553,data,5,0),\"\")","v":""},"عدم إستكمال بيانات إستلام السائق من العميل يعنى عدم وجود بالتات مرتجع"]
["رقم الهاتف/",{"$f":"IF(F553>0,VLOOKUP(F553,data,4,0),\"\")","v":""},"إستلام السائق من العميل",null,"إستلام مخازن الشركة"]
[null,null,"عدد البالتات المرتجع","توقيع السائق","عدد البالتات المرتجع","توقيع المخازن"]
[]
[]
["كود المنتج","اسم المنتج","عدد البالتات","محتوى البالتة","إجمالي الكمية","ملاحظات &\n تاريخ الإنتاج"]
[null,{"$f":"IF(A563>0,VLOOKUP(A563,or,2,0),\"\")","v":""},null,null,{"$f":"C563*D563","v":0}]
[null,"",null,null,0]
[null,"",null,null,0]
[null,"",null,null,0]
[null,"",null,null,0]
[null,"",null,null,0]
[null,"",null,null,0]
[null,"",null,null,0]
[null,"",null,null,0]
[null,"",null,null,0]
[null,"",null,null,0]
[null,"",null,null,0]
[null,"",null,null,0]
["إستلمت أنا الموقع أدناه البضاعة الموضحة أعلاه في عهدتى بصفة أمانة بحالة جيدة وأتعهد بتسليمها إلى جهة الوصول بحالتها "]
["وأقر تضامنى مع مالك السيارة  لتحمل أي مسئولية تقع على البضاعة من عجز أو تلف أو فقدان أو حوادث أو تأخير في تسليم"]
[" البضاعة المشحونة بالسيارة قيادتى مسئولية تامة وتوقيعى على هذا إقرار منى بذلك.",null,null,null,"إجمالي عدد البالتات المستلمة"]
[null,null,null,null,"خشب بلدى",{"$f":"SUM(C563:C575)","v":0}]
["إدارة المخازن","الأمن\nتم مراجعة الكميات والأصناف المنصرفة","إدارة الجودة",null,"مالك السيارة"]
[null,"          الإسم :","الإسم :",null,"إسم السائق"]
["التوقيع :","         التوقيع :","التوقيع :",null,"رقم السيارة"]
[null,"خاص بالعميل",null,null,"توقيع السائق"]
[null,"توقيع المستلم /",null,null,"يــعــتــمــد ،،،"]
[]
[]
[]
[]
[null,null,null,null,"التاريخ"]
[null,null,null,null,"رقم البوليصة"]
[null,null,null,null,"رقم أمر التوريد"]
[null,null,null,null,"كود العميل"]
[]
["بيانات العميل"]
["شـركـة /",{"$f":"IF(F592>0,VLOOKUP(F592,cli,2,0),\"\")","v":""},"الرجاء إعادة البالتات الفارغة من الموقع"]
["الموقع /",{"$f":"IF(F592>0,VLOOKUP(F592,data,5,0),\"\")","v":""},"عدم إستكمال بيانات إستلام السائق من العميل يعنى عدم وجود بالتات مرتجع"]
["رقم الهاتف/",{"$f":"IF(F592>0,VLOOKUP(F592,data,4,0),\"\")","v":""},"إستلام السائق من العميل",null,"إستلام مخازن الشركة"]
[null,null,"عدد البالتات المرتجع","توقيع السائق","عدد البالتات المرتجع","توقيع المخازن"]
[]
[]
["كود المنتج","اسم المنتج","عدد البالتات","محتوى البالتة","إجمالي الكمية","ملاحظات &\n تاريخ الإنتاج"]
[null,{"$f":"IF(A602>0,VLOOKUP(A602,or,2,0),\"\")","v":""},null,null,{"$f":"C602*D602","v":0}]
[null,"",null,null,0]
[null,"",null,null,0]
[null,"",null,null,0]
[null,"",null,null,0]
[null,"",null,null,0]
[null,"",null,null,0]
[null,"",null,null,0]
[null,"",null,null,0]
[null,"",null,null,0]
[null,"",null,null,0]
[null,"",null,null,0]
[null,"",null,null,0]
["إستلمت أنا الموقع أدناه البضاعة الموضحة أعلاه في عهدتى بصفة أمانة بحالة جيدة وأتعهد بتسليمها إلى جهة الوصول بحالتها "]
["وأقر تضامنى مع مالك السيارة  لتحمل أي مسئولية تقع على البضاعة من عجز أو تلف أو فقدان أو حوادث أو تأخير في تسليم"]
[" البضاعة المشحونة بالسيارة قيادتى مسئولية تامة وتوقيعى على هذا إقرار منى بذلك.",null,null,null,"إجمالي عدد البالتات المستلمة"]
[null,null,null,null,"خشب بلدى",{"$f":"SUM(C602:C614)","v":0}]
["إدارة المخازن","الأمن\nتم مراجعة الكميات والأصناف المنصرفة","إدارة الجودة",null,"مالك السيارة"]
[null,"          الإسم :","الإسم :",null,"إسم السائق"]
["التوقيع :","         التوقيع :","التوقيع :",null,"رقم السيارة"]
[null,"خاص بالعميل",null,null,"توقيع السائق"]
[null,"توقيع المستلم /",null,null,"يــعــتــمــد ،،،"]
[]
[]
[]
[]
[null,null,null,null,"التاريخ"]
[null,null,null,null,"رقم البوليصة"]
[null,null,null,null,"رقم أمر التوريد"]
[null,null,null,null,"كود العميل"]
[]
["بيانات العميل"]
["شـركـة /",{"$f":"IF(F631>0,VLOOKUP(F631,cli,2,0),\"\")","v":""},"الرجاء إعادة البالتات الفارغة من الموقع"]
["الموقع /",{"$f":"IF(F631>0,VLOOKUP(F631,data,5,0),\"\")","v":""},"عدم إستكمال بيانات إستلام السائق من العميل يعنى عدم وجود بالتات مرتجع"]
["رقم الهاتف/",{"$f":"IF(F631>0,VLOOKUP(F631,data,4,0),\"\")","v":""},"إستلام السائق من العميل",null,"إستلام مخازن الشركة"]
[null,null,"عدد البالتات المرتجع","توقيع السائق","عدد البالتات المرتجع","توقيع المخازن"]
[]
[]
["كود المنتج","اسم المنتج","عدد البالتات","محتوى البالتة","إجمالي الكمية","ملاحظات &\n تاريخ الإنتاج"]
[null,{"$f":"IF(A641>0,VLOOKUP(A641,or,2,0),\"\")","v":""},null,null,{"$f":"C641*D641","v":0}]
[null,"",null,null,0]
[null,"",null,null,0]
[null,"",null,null,0]
[null,"",null,null,0]
[null,"",null,null,0]
[null,"",null,null,0]
[null,"",null,null,0]
[null,"",null,null,0]
[null,"",null,null,0]
[null,"",null,null,0]
[null,"",null,null,0]
[null,"",null,null,0]
["إستلمت أنا الموقع أدناه البضاعة الموضحة أعلاه في عهدتى بصفة أمانة بحالة جيدة وأتعهد بتسليمها إلى جهة الوصول بحالتها "]
["وأقر تضامنى مع مالك السيارة  لتحمل أي مسئولية تقع على البضاعة من عجز أو تلف أو فقدان أو حوادث أو تأخير في تسليم"]
[" البضاعة المشحونة بالسيارة قيادتى مسئولية تامة وتوقيعى على هذا إقرار منى بذلك.",null,null,null,"إجمالي عدد البالتات المستلمة"]
[null,null,null,null,"خشب بلدى",{"$f":"SUM(C641:C653)","v":0}]
["إدارة المخازن","الأمن\nتم مراجعة الكميات والأصناف المنصرفة","إدارة الجودة",null,"مالك السيارة"]
[null,"          الإسم :","الإسم :",null,"إسم السائق"]
["التوقيع :","         التوقيع :","التوقيع :",null,"رقم السيارة"]
[null,"خاص بالعميل",null,null,"توقيع السائق"]
[null,"توقيع المستلم /",null,null,"يــعــتــمــد ،،،"]
[]
[]
[]
[]
[null,null,null,null,"التاريخ"]
[null,null,null,null,"رقم البوليصة"]
[null,null,null,null,"رقم أمر التوريد"]
[null,null,null,null,"كود العميل"]
[]
["بيانات العميل"]
["شـركـة /",{"$f":"IF(F670>0,VLOOKUP(F670,cli,2,0),\"\")","v":""},"الرجاء إعادة البالتات الفارغة من الموقع"]
["الموقع /",{"$f":"IF(F670>0,VLOOKUP(F670,data,5,0),\"\")","v":""},"عدم إستكمال بيانات إستلام السائق من العميل يعنى عدم وجود بالتات مرتجع"]
["رقم الهاتف/",{"$f":"IF(F670>0,VLOOKUP(F670,data,4,0),\"\")","v":""},"إستلام السائق من العميل",null,"إستلام مخازن الشركة"]
[null,null,"عدد البالتات المرتجع","توقيع السائق","عدد البالتات المرتجع","توقيع المخازن"]
[]
[]
["كود المنتج","اسم المنتج","عدد البالتات","محتوى البالتة","إجمالي الكمية","ملاحظات &\n تاريخ الإنتاج"]
[null,{"$f":"IF(A680>0,VLOOKUP(A680,or,2,0),\"\")","v":""},null,null,{"$f":"C680*D680","v":0}]
[null,"",null,null,0]
[null,"",null,null,0]
[null,"",null,null,0]
[null,"",null,null,0]
[null,"",null,null,0]
[null,"",null,null,0]
[null,"",null,null,0]
[null,"",null,null,0]
[null,"",null,null,0]
[null,"",null,null,0]
[null,"",null,null,0]
[null,"",null,null,0]
["إستلمت أنا الموقع أدناه البضاعة الموضحة أعلاه في عهدتى بصفة أمانة بحالة جيدة وأتعهد بتسليمها إلى جهة الوصول بحالتها "]
["وأقر تضامنى مع مالك السيارة  لتحمل أي مسئولية تقع على البضاعة من عجز أو تلف أو فقدان أو حوادث أو تأخير في تسليم"]
[" البضاعة المشحونة بالسيارة قيادتى مسئولية تامة وتوقيعى على هذا إقرار منى بذلك.",null,null,null,"إجمالي عدد البالتات المستلمة"]
[null,null,null,null,"خشب بلدى",{"$f":"SUM(C680:C692)","v":0}]
["إدارة المخازن","الأمن\nتم مراجعة الكميات والأصناف المنصرفة","إدارة الجودة",null,"مالك السيارة"]
[null,"          الإسم :","الإسم :",null,"إسم السائق"]
["التوقيع :","         التوقيع :","التوقيع :",null,"رقم السيارة"]
[null,"خاص بالعميل",null,null,"توقيع السائق"]
[null,"توقيع المستلم /",null,null,"يــعــتــمــد ،،،"]
[]
[]
[]
[]
[null,null,null,null,"التاريخ"]
[null,null,null,null,"رقم البوليصة"]
[null,null,null,null,"رقم أمر التوريد"]
[null,null,null,null,"كود العميل"]
[]
["بيانات العميل"]
["شـركـة /",{"$f":"IF(F709>0,VLOOKUP(F709,cli,2,0),\"\")","v":""},"الرجاء إعادة البالتات الفارغة من الموقع"]
["الموقع /",{"$f":"IF(F709>0,VLOOKUP(F709,data,5,0),\"\")","v":""},"عدم إستكمال بيانات إستلام السائق من العميل يعنى عدم وجود بالتات مرتجع"]
["رقم الهاتف/",{"$f":"IF(F709>0,VLOOKUP(F709,data,4,0),\"\")","v":""},"إستلام السائق من العميل",null,"إستلام مخازن الشركة"]
[null,null,"عدد البالتات المرتجع","توقيع السائق","عدد البالتات المرتجع","توقيع المخازن"]
[]
[]
["كود المنتج","اسم المنتج","عدد البالتات","محتوى البالتة","إجمالي الكمية","ملاحظات &\n تاريخ الإنتاج"]
[null,{"$f":"IF(A719>0,VLOOKUP(A719,or,2,0),\"\")","v":""},null,null,{"$f":"C719*D719","v":0}]
[null,"",null,null,0]
[null,"",null,null,0]
[null,"",null,null,0]
[null,"",null,null,0]
[null,"",null,null,0]
[null,"",null,null,0]
[null,"",null,null,0]
[null,"",null,null,0]
[null,"",null,null,0]
[null,"",null,null,0]
[null,"",null,null,0]
[null,"",null,null,0]
["إستلمت أنا الموقع أدناه البضاعة الموضحة أعلاه في عهدتى بصفة أمانة بحالة جيدة وأتعهد بتسليمها إلى جهة الوصول بحالتها "]
["وأقر تضامنى مع مالك السيارة  لتحمل أي مسئولية تقع على البضاعة من عجز أو تلف أو فقدان أو حوادث أو تأخير في تسليم"]
[" البضاعة المشحونة بالسيارة قيادتى مسئولية تامة وتوقيعى على هذا إقرار منى بذلك.",null,null,null,"إجمالي عدد البالتات المستلمة"]
[null,null,null,null,"خشب بلدى",{"$f":"SUM(C719:C731)","v":0}]
["إدارة المخازن","الأمن\nتم مراجعة الكميات والأصناف المنصرفة","إدارة الجودة",null,"مالك السيارة"]
[null,"          الإسم :","الإسم :",null,"إسم السائق"]
["التوقيع :","         التوقيع :","التوقيع :",null,"رقم السيارة"]
[null,"خاص بالعميل",null,null,"توقيع السائق"]
[null,"توقيع المستلم /",null,null,"يــعــتــمــد ،،،"]
[]
[]
[]
[]
[null,null,null,null,"التاريخ"]
[null,null,null,null,"رقم البوليصة"]
[null,null,null,null,"رقم أمر التوريد"]
[null,null,null,null,"كود العميل"]
[]
["بيانات العميل"]
["شـركـة /",{"$f":"IF(F748>0,VLOOKUP(F748,cli,2,0),\"\")","v":""},"الرجاء إعادة البالتات الفارغة من الموقع"]
["الموقع /",{"$f":"IF(F748>0,VLOOKUP(F748,data,5,0),\"\")","v":""},"عدم إستكمال بيانات إستلام السائق من العميل يعنى عدم وجود بالتات مرتجع"]
["رقم الهاتف/",{"$f":"IF(F748>0,VLOOKUP(F748,data,4,0),\"\")","v":""},"إستلام السائق من العميل",null,"إستلام مخازن الشركة"]
[null,null,"عدد البالتات المرتجع","توقيع السائق","عدد البالتات المرتجع","توقيع المخازن"]
[]
[]
["كود المنتج","اسم المنتج","عدد البالتات","محتوى البالتة","إجمالي الكمية","ملاحظات &\n تاريخ الإنتاج"]
[null,{"$f":"IF(A758>0,VLOOKUP(A758,or,2,0),\"\")","v":""},null,null,{"$f":"C758*D758","v":0}]
[null,"",null,null,0]
[null,"",null,null,0]
[null,"",null,null,0]
[null,"",null,null,0]
[null,"",null,null,0]
[null,"",null,null,0]
[null,"",null,null,0]
[null,"",null,null,0]
[null,"",null,null,0]
[null,"",null,null,0]
[null,"",null,null,0]
[null,"",null,null,0]
["إستلمت أنا الموقع أدناه البضاعة الموضحة أعلاه في عهدتى بصفة أمانة بحالة جيدة وأتعهد بتسليمها إلى جهة الوصول بحالتها "]
["وأقر تضامنى مع مالك السيارة  لتحمل أي مسئولية تقع على البضاعة من عجز أو تلف أو فقدان أو حوادث أو تأخير في تسليم"]
[" البضاعة المشحونة بالسيارة قيادتى مسئولية تامة وتوقيعى على هذا إقرار منى بذلك.",null,null,null,"إجمالي عدد البالتات المستلمة"]
[null,null,null,null,"خشب بلدى",{"$f":"SUM(C758:C770)","v":0}]
["إدارة المخازن","الأمن\nتم مراجعة الكميات والأصناف المنصرفة","إدارة الجودة",null,"مالك السيارة"]
[null,"          الإسم :","الإسم :",null,"إسم السائق"]
["التوقيع :","         التوقيع :","التوقيع :",null,"رقم السيارة"]
[null,"خاص بالعميل",null,null,"توقيع السائق"]
[null,"توقيع المستلم /",null,null,"يــعــتــمــد ،،،"]
[]
[]
[]
[]
[null,null,null,null,"التاريخ"]
[null,null,null,null,"رقم البوليصة"]
[null,null,null,null,"رقم أمر التوريد"]
[null,null,null,null,"كود العميل"]
[]
["بيانات العميل"]
["شـركـة /",{"$f":"IF(F787>0,VLOOKUP(F787,cli,2,0),\"\")","v":""},"الرجاء إعادة البالتات الفارغة من الموقع"]
["الموقع /",{"$f":"IF(F787>0,VLOOKUP(F787,data,5,0),\"\")","v":""},"عدم إستكمال بيانات إستلام السائق من العميل يعنى عدم وجود بالتات مرتجع"]
["رقم الهاتف/",{"$f":"IF(F787>0,VLOOKUP(F787,data,4,0),\"\")","v":""},"إستلام السائق من العميل",null,"إستلام مخازن الشركة"]
[null,null,"عدد البالتات المرتجع","توقيع السائق","عدد البالتات المرتجع","توقيع المخازن"]
[]
[]
["كود المنتج","اسم المنتج","عدد البالتات","محتوى البالتة","إجمالي الكمية","ملاحظات &\n تاريخ الإنتاج"]
[null,{"$f":"IF(A797>0,VLOOKUP(A797,or,2,0),\"\")","v":""},null,null,{"$f":"C797*D797","v":0}]
[null,"",null,null,0]
[null,"",null,null,0]
[null,"",null,null,0]
[null,"",null,null,0]
[null,"",null,null,0]
[null,"",null,null,0]
[null,"",null,null,0]
[null,"",null,null,0]
[null,"",null,null,0]
[null,"",null,null,0]
[null,"",null,null,0]
[null,"",null,null,0]
["إستلمت أنا الموقع أدناه البضاعة الموضحة أعلاه في عهدتى بصفة أمانة بحالة جيدة وأتعهد بتسليمها إلى جهة الوصول بحالتها "]
["وأقر تضامنى مع مالك السيارة  لتحمل أي مسئولية تقع على البضاعة من عجز أو تلف أو فقدان أو حوادث أو تأخير في تسليم"]
[" البضاعة المشحونة بالسيارة قيادتى مسئولية تامة وتوقيعى على هذا إقرار منى بذلك.",null,null,null,"إجمالي عدد البالتات المستلمة"]
[null,null,null,null,"خشب بلدى",{"$f":"SUM(C797:C809)","v":0}]
["إدارة المخازن","الأمن\nتم مراجعة الكميات والأصناف المنصرفة","إدارة الجودة",null,"مالك السيارة"]
[null,"          الإسم :","الإسم :",null,"إسم السائق"]
["التوقيع :","         التوقيع :","التوقيع :",null,"رقم السيارة"]
[null,"خاص بالعميل",null,null,"توقيع السائق"]
[null,"توقيع المستلم /",null,null,"يــعــتــمــد ،،،"]
[]
[]
[]
[]
[null,null,null,null,"التاريخ"]
[null,null,null,null,"رقم البوليصة"]
[null,null,null,null,"رقم أمر التوريد"]
[null,null,null,null,"كود العميل"]
[]
["بيانات العميل"]
["شـركـة /",{"$f":"IF(F826>0,VLOOKUP(F826,cli,2,0),\"\")","v":""},"الرجاء إعادة البالتات الفارغة من الموقع"]
["الموقع /",{"$f":"IF(F826>0,VLOOKUP(F826,data,5,0),\"\")","v":""},"عدم إستكمال بيانات إستلام السائق من العميل يعنى عدم وجود بالتات مرتجع"]
["رقم الهاتف/",{"$f":"IF(F826>0,VLOOKUP(F826,data,4,0),\"\")","v":""},"إستلام السائق من العميل",null,"إستلام مخازن الشركة"]
[null,null,"عدد البالتات المرتجع","توقيع السائق","عدد البالتات المرتجع","توقيع المخازن"]
[]
[]
["كود المنتج","اسم المنتج","عدد البالتات","محتوى البالتة","إجمالي الكمية","ملاحظات &\n تاريخ الإنتاج"]
[null,{"$f":"IF(A836>0,VLOOKUP(A836,or,2,0),\"\")","v":""},null,null,{"$f":"C836*D836","v":0}]
[null,"",null,null,0]
[null,"",null,null,0]
[null,"",null,null,0]
[null,"",null,null,0]
[null,"",null,null,0]
[null,"",null,null,0]
[null,"",null,null,0]
[null,"",null,null,0]
[null,"",null,null,0]
[null,"",null,null,0]
[null,"",null,null,0]
[null,"",null,null,0]
["إستلمت أنا الموقع أدناه البضاعة الموضحة أعلاه في عهدتى بصفة أمانة بحالة جيدة وأتعهد بتسليمها إلى جهة الوصول بحالتها "]
["وأقر تضامنى مع مالك السيارة  لتحمل أي مسئولية تقع على البضاعة من عجز أو تلف أو فقدان أو حوادث أو تأخير في تسليم"]
[" البضاعة المشحونة بالسيارة قيادتى مسئولية تامة وتوقيعى على هذا إقرار منى بذلك.",null,null,null,"إجمالي عدد البالتات المستلمة"]
[null,null,null,null,"خشب بلدى",{"$f":"SUM(C836:C848)","v":0}]
["إدارة المخازن","الأمن\nتم مراجعة الكميات والأصناف المنصرفة","إدارة الجودة",null,"مالك السيارة"]
[null,"          الإسم :","الإسم :",null,"إسم السائق"]
["التوقيع :","         التوقيع :","التوقيع :",null,"رقم السيارة"]
[null,"خاص بالعميل",null,null,"توقيع السائق"]
[null,"توقيع المستلم /",null,null,"يــعــتــمــد ،،،"]
[]
[]
[]
[]
[null,null,null,null,"التاريخ"]
[null,null,null,null,"رقم البوليصة"]
[null,null,null,null,"رقم أمر التوريد"]
[null,null,null,null,"كود العميل"]
[]
["بيانات العميل"]
["شـركـة /",{"$f":"IF(F865>0,VLOOKUP(F865,cli,2,0),\"\")","v":""},"الرجاء إعادة البالتات الفارغة من الموقع"]
["الموقع /",{"$f":"IF(F865>0,VLOOKUP(F865,data,5,0),\"\")","v":""},"عدم إستكمال بيانات إستلام السائق من العميل يعنى عدم وجود بالتات مرتجع"]
["رقم الهاتف/",{"$f":"IF(F865>0,VLOOKUP(F865,data,4,0),\"\")","v":""},"إستلام السائق من العميل",null,"إستلام مخازن الشركة"]
[null,null,"عدد البالتات المرتجع","توقيع السائق","عدد البالتات المرتجع","توقيع المخازن"]
[]
[]
["كود المنتج","اسم المنتج","عدد البالتات","محتوى البالتة","إجمالي الكمية","ملاحظات &\n تاريخ الإنتاج"]
[null,{"$f":"IF(A875>0,VLOOKUP(A875,or,2,0),\"\")","v":""},null,null,{"$f":"C875*D875","v":0}]
[null,"",null,null,0]
[null,"",null,null,0]
[null,"",null,null,0]
[null,"",null,null,0]
[null,"",null,null,0]
[null,"",null,null,0]
[null,"",null,null,0]
[null,"",null,null,0]
[null,"",null,null,0]
[null,"",null,null,0]
[null,"",null,null,0]
[null,"",null,null,0]
["إستلمت أنا الموقع أدناه البضاعة الموضحة أعلاه في عهدتى بصفة أمانة بحالة جيدة وأتعهد بتسليمها إلى جهة الوصول بحالتها "]
["وأقر تضامنى مع مالك السيارة  لتحمل أي مسئولية تقع على البضاعة من عجز أو تلف أو فقدان أو حوادث أو تأخير في تسليم"]
[" البضاعة المشحونة بالسيارة قيادتى مسئولية تامة وتوقيعى على هذا إقرار منى بذلك.",null,null,null,"إجمالي عدد البالتات المستلمة"]
[null,null,null,null,"خشب بلدى",{"$f":"SUM(C875:C887)","v":0}]
["إدارة المخازن","الأمن\nتم مراجعة الكميات والأصناف المنصرفة","إدارة الجودة",null,"مالك السيارة"]
[null,"          الإسم :","الإسم :",null,"إسم السائق"]
["التوقيع :","         التوقيع :","التوقيع :",null,"رقم السيارة"]
[null,"خاص بالعميل",null,null,"توقيع السائق"]
[null,"توقيع المستلم /",null,null,"يــعــتــمــد ،،،"]
[]
[]
[]
[]
[null,null,null,null,"التاريخ"]
[null,null,null,null,"رقم البوليصة"]
[null,null,null,null,"رقم أمر التوريد"]
[null,null,null,null,"كود العميل"]
[]
["بيانات العميل"]
["شـركـة /",{"$f":"IF(F904>0,VLOOKUP(F904,cli,2,0),\"\")","v":""},"الرجاء إعادة البالتات الفارغة من الموقع"]
["الموقع /",{"$f":"IF(F904>0,VLOOKUP(F904,data,5,0),\"\")","v":""},"عدم إستكمال بيانات إستلام السائق من العميل يعنى عدم وجود بالتات مرتجع"]
["رقم الهاتف/",{"$f":"IF(F904>0,VLOOKUP(F904,data,4,0),\"\")","v":""},"إستلام السائق من العميل",null,"إستلام مخازن الشركة"]
[null,null,"عدد البالتات المرتجع","توقيع السائق","عدد البالتات المرتجع","توقيع المخازن"]
[]
[]
["كود المنتج","اسم المنتج","عدد البالتات","محتوى البالتة","إجمالي الكمية","ملاحظات &\n تاريخ الإنتاج"]
[null,{"$f":"IF(A914>0,VLOOKUP(A914,or,2,0),\"\")","v":""},null,null,{"$f":"C914*D914","v":0}]
[null,"",null,null,0]
[null,"",null,null,0]
[null,"",null,null,0]
[null,"",null,null,0]
[null,"",null,null,0]
[null,"",null,null,0]
[null,"",null,null,0]
[null,"",null,null,0]
[null,"",null,null,0]
[null,"",null,null,0]
[null,"",null,null,0]
[null,"",null,null,0]
["إستلمت أنا الموقع أدناه البضاعة الموضحة أعلاه في عهدتى بصفة أمانة بحالة جيدة وأتعهد بتسليمها إلى جهة الوصول بحالتها "]
["وأقر تضامنى مع مالك السيارة  لتحمل أي مسئولية تقع على البضاعة من عجز أو تلف أو فقدان أو حوادث أو تأخير في تسليم"]
[" البضاعة المشحونة بالسيارة قيادتى مسئولية تامة وتوقيعى على هذا إقرار منى بذلك.",null,null,null,"إجمالي عدد البالتات المستلمة"]
[null,null,null,null,"خشب بلدى",{"$f":"SUM(C914:C926)","v":0}]
["إدارة المخازن","الأمن\nتم مراجعة الكميات والأصناف المنصرفة","إدارة الجودة",null,"مالك السيارة"]
[null,"          الإسم :","الإسم :",null,"إسم السائق"]
["التوقيع :","         التوقيع :","التوقيع :",null,"رقم السيارة"]
[null,"خاص بالعميل",null,null,"توقيع السائق"]
[null,"توقيع المستلم /",null,null,"يــعــتــمــد ،،،"]
[]
[]
[]
[]
[null,null,null,null,"التاريخ"]
[null,null,null,null,"رقم البوليصة"]
[null,null,null,null,"رقم أمر التوريد"]
[null,null,null,null,"كود العميل"]
[]
["بيانات العميل"]
["شـركـة /",{"$f":"IF(F943>0,VLOOKUP(F943,cli,2,0),\"\")","v":""},"الرجاء إعادة البالتات الفارغة من الموقع"]
["الموقع /",{"$f":"IF(F943>0,VLOOKUP(F943,data,5,0),\"\")","v":""},"عدم إستكمال بيانات إستلام السائق من العميل يعنى عدم وجود بالتات مرتجع"]
["رقم الهاتف/",{"$f":"IF(F943>0,VLOOKUP(F943,data,4,0),\"\")","v":""},"إستلام السائق من العميل",null,"إستلام مخازن الشركة"]
[null,null,"عدد البالتات المرتجع","توقيع السائق","عدد البالتات المرتجع","توقيع المخازن"]
[]
[]
["كود المنتج","اسم المنتج","عدد البالتات","محتوى البالتة","إجمالي الكمية","ملاحظات &\n تاريخ الإنتاج"]
[null,{"$f":"IF(A953>0,VLOOKUP(A953,or,2,0),\"\")","v":""},null,null,{"$f":"C953*D953","v":0}]
[null,"",null,null,0]
[null,"",null,null,0]
[null,"",null,null,0]
[null,"",null,null,0]
[null,"",null,null,0]
[null,"",null,null,0]
[null,"",null,null,0]
[null,"",null,null,0]
[null,"",null,null,0]
[null,"",null,null,0]
[null,"",null,null,0]
[null,"",null,null,0]
["إستلمت أنا الموقع أدناه البضاعة الموضحة أعلاه في عهدتى بصفة أمانة بحالة جيدة وأتعهد بتسليمها إلى جهة الوصول بحالتها "]
["وأقر تضامنى مع مالك السيارة  لتحمل أي مسئولية تقع على البضاعة من عجز أو تلف أو فقدان أو حوادث أو تأخير في تسليم"]
[" البضاعة المشحونة بالسيارة قيادتى مسئولية تامة وتوقيعى على هذا إقرار منى بذلك.",null,null,null,"إجمالي عدد البالتات المستلمة"]
[null,null,null,null,"خشب بلدى",{"$f":"SUM(C953:C965)","v":0}]
["إدارة المخازن","الأمن\nتم مراجعة الكميات والأصناف المنصرفة","إدارة الجودة",null,"مالك السيارة"]
[null,"          الإسم :","الإسم :",null,"إسم السائق"]
["التوقيع :","         التوقيع :","التوقيع :",null,"رقم السيارة"]
[null,"خاص بالعميل",null,null,"توقيع السائق"]
[null,"توقيع المستلم /",null,null,"يــعــتــمــد ،،،"]
[]
[]
[]
[]
[null,null,null,null,"التاريخ"]
[null,null,null,null,"رقم البوليصة"]
[null,null,null,null,"رقم أمر التوريد"]
[null,null,null,null,"كود العميل"]
[]
["بيانات العميل"]
["شـركـة /",{"$f":"IF(F982>0,VLOOKUP(F982,cli,2,0),\"\")","v":""},"الرجاء إعادة البالتات الفارغة من الموقع"]
["الموقع /",{"$f":"IF(F982>0,VLOOKUP(F982,data,5,0),\"\")","v":""},"عدم إستكمال بيانات إستلام السائق من العميل يعنى عدم وجود بالتات مرتجع"]
["رقم الهاتف/",{"$f":"IF(F982>0,VLOOKUP(F982,data,4,0),\"\")","v":""},"إستلام السائق من العميل",null,"إستلام مخازن الشركة"]
[null,null,"عدد البالتات المرتجع","توقيع السائق","عدد البالتات المرتجع","توقيع المخازن"]
[]
[]
["كود المنتج","اسم المنتج","عدد البالتات","محتوى البالتة","إجمالي الكمية","ملاحظات &\n تاريخ الإنتاج"]
[null,{"$f":"IF(A992>0,VLOOKUP(A992,or,2,0),\"\")","v":""},null,null,{"$f":"C992*D992","v":0}]
[null,"",null,null,0]
[null,"",null,null,0]
[null,"",null,null,0]
[null,"",null,null,0]
[null,"",null,null,0]
[null,"",null,null,0]
[null,"",null,null,0]
[null,"",null,null,0]
[null,"",null,null,0]
[null,"",null,null,0]
[null,"",null,null,0]
[null,"",null,null,0]
["إستلمت أنا الموقع أدناه البضاعة الموضحة أعلاه في عهدتى بصفة أمانة بحالة جيدة وأتعهد بتسليمها إلى جهة الوصول بحالتها "]
["وأقر تضامنى مع مالك السيارة  لتحمل أي مسئولية تقع على البضاعة من عجز أو تلف أو فقدان أو حوادث أو تأخير في تسليم"]
[" البضاعة المشحونة بالسيارة قيادتى مسئولية تامة وتوقيعى على هذا إقرار منى بذلك.",null,null,null,"إجمالي عدد البالتات المستلمة"]
[null,null,null,null,"خشب بلدى",{"$f":"SUM(C992:C1004)","v":0}]
["إدارة المخازن","الأمن\nتم مراجعة الكميات والأصناف المنصرفة","إدارة الجودة",null,"مالك السيارة"]
[null,"          الإسم :","الإسم :",null,"إسم السائق"]
["التوقيع :","         التوقيع :","التوقيع :",null,"رقم السيارة"]
[null,"خاص بالعميل",null,null,"توقيع السائق"]
[null,"توقيع المستلم /",null,null,"يــعــتــمــد ،،،"]
[]
[]
[]
[]
[null,null,null,null,"التاريخ"]
[null,null,null,null,"رقم البوليصة"]
[null,null,null,null,"رقم أمر التوريد"]
[null,null,null,null,"كود العميل"]
[]
["بيانات العميل"]
["شـركـة /",{"$f":"IF(F1021>0,VLOOKUP(F1021,cli,2,0),\"\")","v":""},"الرجاء إعادة البالتات الفارغة من الموقع"]
["الموقع /",{"$f":"IF(F1021>0,VLOOKUP(F1021,data,5,0),\"\")","v":""},"عدم إستكمال بيانات إستلام السائق من العميل يعنى عدم وجود بالتات مرتجع"]
["رقم الهاتف/",{"$f":"IF(F1021>0,VLOOKUP(F1021,data,4,0),\"\")","v":""},"إستلام السائق من العميل",null,"إستلام مخازن الشركة"]
[null,null,"عدد البالتات المرتجع","توقيع السائق","عدد البالتات المرتجع","توقيع المخازن"]
[]
[]
["كود المنتج","اسم المنتج","عدد البالتات","محتوى البالتة","إجمالي الكمية","ملاحظات &\n تاريخ الإنتاج"]
[null,{"$f":"IF(A1031>0,VLOOKUP(A1031,or,2,0),\"\")","v":""},null,null,{"$f":"C1031*D1031","v":0}]
[null,"",null,null,0]
[null,"",null,null,0]
[null,"",null,null,0]
[null,"",null,null,0]
[null,"",null,null,0]
[null,"",null,null,0]
[null,"",null,null,0]
[null,"",null,null,0]
[null,"",null,null,0]
[null,"",null,null,0]
[null,"",null,null,0]
[null,"",null,null,0]
["إستلمت أنا الموقع أدناه البضاعة الموضحة أعلاه في عهدتى بصفة أمانة بحالة جيدة وأتعهد بتسليمها إلى جهة الوصول بحالتها "]
["وأقر تضامنى مع مالك السيارة  لتحمل أي مسئولية تقع على البضاعة من عجز أو تلف أو فقدان أو حوادث أو تأخير في تسليم"]
[" البضاعة المشحونة بالسيارة قيادتى مسئولية تامة وتوقيعى على هذا إقرار منى بذلك.",null,null,null,"إجمالي عدد البالتات المستلمة"]
[null,null,null,null,"خشب بلدى",{"$f":"SUM(C1031:C1043)","v":0}]
["إدارة المخازن","الأمن\nتم مراجعة الكميات والأصناف المنصرفة","إدارة الجودة",null,"مالك السيارة"]
[null,"          الإسم :","الإسم :",null,"إسم السائق"]
["التوقيع :","         التوقيع :","التوقيع :",null,"رقم السيارة"]
[null,"خاص بالعميل",null,null,"توقيع السائق"]
[null,"توقيع المستلم /",null,null,"يــعــتــمــد ،،،"]
[]
[]
[]
[]
[null,null,null,null,"التاريخ"]
[null,null,null,null,"رقم البوليصة"]
[null,null,null,null,"رقم أمر التوريد"]
[null,null,null,null,"كود العميل"]
[]
["بيانات العميل"]
["شـركـة /",{"$f":"IF(F1060>0,VLOOKUP(F1060,cli,2,0),\"\")","v":""},"الرجاء إعادة البالتات الفارغة من الموقع"]
["الموقع /",{"$f":"IF(F1060>0,VLOOKUP(F1060,data,5,0),\"\")","v":""},"عدم إستكمال بيانات إستلام السائق من العميل يعنى عدم وجود بالتات مرتجع"]
["رقم الهاتف/",{"$f":"IF(F1060>0,VLOOKUP(F1060,data,4,0),\"\")","v":""},"إستلام السائق من العميل",null,"إستلام مخازن الشركة"]
[null,null,"عدد البالتات المرتجع","توقيع السائق","عدد البالتات المرتجع","توقيع المخازن"]
[]
[]
["كود المنتج","اسم المنتج","عدد البالتات","محتوى البالتة","إجمالي الكمية","ملاحظات &\n تاريخ الإنتاج"]
[null,{"$f":"IF(A1070>0,VLOOKUP(A1070,or,2,0),\"\")","v":""},null,null,{"$f":"C1070*D1070","v":0}]
[null,"",null,null,0]
[null,"",null,null,0]
[null,"",null,null,0]
[null,"",null,null,0]
[null,"",null,null,0]
[null,"",null,null,0]
[null,"",null,null,0]
[null,"",null,null,0]
[null,"",null,null,0]
[null,"",null,null,0]
[null,"",null,null,0]
[null,"",null,null,0]
["إستلمت أنا الموقع أدناه البضاعة الموضحة أعلاه في عهدتى بصفة أمانة بحالة جيدة وأتعهد بتسليمها إلى جهة الوصول بحالتها "]
["وأقر تضامنى مع مالك السيارة  لتحمل أي مسئولية تقع على البضاعة من عجز أو تلف أو فقدان أو حوادث أو تأخير في تسليم"]
[" البضاعة المشحونة بالسيارة قيادتى مسئولية تامة وتوقيعى على هذا إقرار منى بذلك.",null,null,null,"إجمالي عدد البالتات المستلمة"]
[null,null,null,null,"خشب بلدى",{"$f":"SUM(C1070:C1082)","v":0}]
["إدارة المخازن","الأمن\nتم مراجعة الكميات والأصناف المنصرفة","إدارة الجودة",null,"مالك السيارة"]
[null,"          الإسم :","الإسم :",null,"إسم السائق"]
["التوقيع :","         التوقيع :","التوقيع :",null,"رقم السيارة"]
[null,"خاص بالعميل",null,null,"توقيع السائق"]
[null,"توقيع المستلم /",null,null,"يــعــتــمــد ،،،"]